fUSD/lending_fUSD_20260519
["ID","MTS","AMOUNT","RATE_DAILY","PERIOD"]
[422605162,1779147033000,-1521.52994848,0.00014993,2]
[422605161,1779147033000,-1521.52994848,0.00014993,2]
[422605164,1779147033000,-1521.52994848,0.00014993,2]
[422605157,1779147033000,-1521.52994848,0.00014993,2]
[422605159,1779147033000,-1521.52994848,0.00014993,2]
[422605158,1779147033000,-1521.52994848,0.00014993,2]
[422605160,1779147033000,-1521.52994848,0.00014993,2]
[422605152,1779147033000,-1521.52994848,0.00014993,2]
[422605166,1779147033000,-1521.52994848,0.00014993,2]
[422605179,1779147033000,-1521.52994848,0.00014993,2]
[422605163,1779147033000,-1521.52994848,0.00014993,2]
[422605173,1779147033000,-1521.52994848,0.00014993,2]
[422605170,1779147033000,-1521.52994848,0.00014993,2]
[422605171,1779147033000,-1521.52994848,0.00014993,2]
[422605167,1779147033000,-1521.52994848,0.00014993,2]
[422605175,1779147033000,-1521.52994848,0.00014993,2]
[422605174,1779147033000,-1521.52994848,0.00014993,2]
[422605169,1779147033000,-1521.52994848,0.00014993,2]
[422605176,1779147033000,-1521.52994848,0.00014993,2]
[422605168,1779147033000,-1521.52994848,0.00014993,2]
[422605165,1779147033000,-1521.52994848,0.00014993,2]
[422605172,1779147033000,-1521.52994848,0.00014993,2]
[422605177,1779147033000,-1521.52994848,0.00014993,2]
[422605235,1779147034000,-488.43580054,0.00014999,2]
[422605254,1779147034000,-500.0,0.00014999,2]
[422605236,1779147034000,-500.0,0.00014999,2]
[422605238,1779147034000,-500.0,0.00014999,2]
[422605239,1779147034000,-500.0,0.00014999,2]
[422605237,1779147034000,-500.0,0.00014999,2]
[422605240,1779147034000,-500.0,0.00014999,2]
[422605241,1779147034000,-500.0,0.00014999,2]
[422605243,1779147034000,-500.0,0.00014999,2]
[422605250,1779147034000,-500.0,0.00014999,2]
[422605247,1779147034000,-500.0,0.00014999,2]
[422605246,1779147034000,-500.0,0.00014999,2]
[422605251,1779147034000,-500.0,0.00014999,2]
[422605248,1779147034000,-500.0,0.00014999,2]
[422605249,1779147034000,-500.0,0.00014999,2]
[422605256,1779147034000,-500.0,0.00014999,2]
[422605255,1779147034000,-500.0,0.00014999,2]
[422605253,1779147034000,-500.0,0.00014999,2]
[422605245,1779147034000,-508.6161554,0.00014999,2]
[422605242,1779147034000,-500.0,0.00014999,2]
[422605233,1779147034000,-499.51609435,0.00014999,2]
[422605218,1779147034000,-7972.36526995,0.00014993,2]
[422605234,1779147034000,-500.0,0.00014999,2]
[422605212,1779147034000,-7972.36526995,0.00014993,2]
[422605213,1779147034000,-7972.36526995,0.00014993,2]
[422605225,1779147034000,-151.0,0.00014997,2]
[422605215,1779147034000,-7972.36526995,0.00014993,2]
[422605226,1779147034000,-500.0,0.00014997,2]
[422605216,1779147034000,-7972.36526995,0.00014993,2]
[422605217,1779147034000,-7972.36526995,0.00014993,2]
[422605222,1779147034000,-7972.36526995,0.00014993,2]
[422605221,1779147034000,-7972.36526995,0.00014993,2]
[422605244,1779147034000,-500.0,0.00014999,2]
[422605223,1779147034000,-7972.36526995,0.00014993,2]
[422605214,1779147034000,-7972.36526995,0.00014993,2]
[422605219,1779147034000,-7972.36526995,0.00014993,2]
[422605220,1779147034000,-7972.36526995,0.00014993,2]
[422605228,1779147034000,-5237.01477432,0.00014998,2]
[422605230,1779147034000,-500.0,0.00014999,2]
[422605229,1779147034000,-683.60782157,0.00014998,2]
[422605227,1779147034000,-713.67,0.00014997,2]
[422605231,1779147034000,-500.0,0.00014999,2]
[422605232,1779147034000,-294.22660777,0.00014999,2]
[422605224,1779147034000,-7972.36526994,0.00014993,2]
[422605252,1779147034000,-500.0,0.00014999,2]
[422605270,1779147034000,-500.0,0.00014999,2]
[422605260,1779147034000,-500.0,0.00014999,2]
[422605285,1779147034000,-500.0,0.00014999,13]
[422605283,1779147034000,-500.0,0.00014999,11]
[422605287,1779147034000,-500.0,0.00014999,15]
[422605284,1779147034000,-500.0,0.00014999,12]
[422605297,1779147034000,-500.0,0.00014999,21]
[422605298,1779147034000,-573.60500209,0.00014999,21]
[422605291,1779147034000,-500.0,0.00014999,19]
[422605288,1779147034000,-500.0,0.00014999,16]
[422605290,1779147034000,-500.0,0.00014999,18]
[422605282,1779147034000,-500.0,0.00014999,10]
[422605292,1779147034000,-500.0,0.00014999,20]
[422605293,1779147034000,-500.0,0.00014999,21]
[422605295,1779147034000,-500.0,0.00014999,21]
[422605296,1779147034000,-500.0,0.00014999,21]
[422605300,1779147034000,-713.67,0.00014999,2]
[422605299,1779147034000,-713.67,0.00014999,2]
[422605301,1779147034000,-713.67,0.00014999,2]
[422605302,1779147034000,-713.67,0.00014999,2]
[422605303,1779147034000,-413.72777485,0.00014999,2]
[422605257,1779147034000,-500.0,0.00014999,2]
[422605294,1779147034000,-500.0,0.00014999,21]
[422605281,1779147034000,-500.0,0.00014999,9]
[422605289,1779147034000,-500.0,0.00014999,17]
[422605279,1779147034000,-500.0,0.00014999,7]
[422605259,1779147034000,-500.0,0.00014999,2]
[422605261,1779147034000,-500.0,0.00014999,2]
[422605262,1779147034000,-500.0,0.00014999,2]
[422605286,1779147034000,-500.0,0.00014999,14]
[422605266,1779147034000,-500.0,0.00014999,2]
[422605264,1779147034000,-500.0,0.00014999,2]
[422605263,1779147034000,-500.0,0.00014999,2]
[422605265,1779147034000,-500.0,0.00014999,2]
[422605267,1779147034000,-500.0,0.00014999,2]
[422605269,1779147034000,-500.0,0.00014999,2]
[422605258,1779147034000,-500.0,0.00014999,2]
[422605272,1779147034000,-500.0,0.00014999,2]
[422605268,1779147034000,-523.48,0.00014999,2]
[422605280,1779147034000,-500.0,0.00014999,8]
[422605274,1779147034000,-500.0,0.00014999,2]
[422605273,1779147034000,-300.11260606,0.00014999,2]
[422605278,1779147034000,-500.0,0.00014999,6]
[422605277,1779147034000,-500.0,0.00014999,5]
[422605271,1779147034000,-500.0,0.00014999,2]
[422605275,1779147034000,-500.0,0.00014999,3]
[422605276,1779147034000,-500.0,0.00014999,4]
[422605314,1779147035000,-713.67,0.00014999,2]
[422605315,1779147035000,-713.67,0.00014999,2]
[422605319,1779147035000,-713.67,0.00014999,2]
[422605321,1779147035000,-713.67,0.00014999,2]
[422605313,1779147035000,-713.67,0.00014999,2]
[422605322,1779147035000,-713.90759521,0.00014999,2]
[422605312,1779147035000,-713.67,0.00014999,2]
[422605309,1779147035000,-713.67,0.00014999,2]
[422605311,1779147035000,-713.67,0.00014999,2]
[422605308,1779147035000,-713.67,0.00014999,2]
[422605307,1779147035000,-713.67,0.00014999,2]
[422605306,1779147035000,-713.67,0.00014999,2]
[422605305,1779147035000,-713.67,0.00014999,2]
[422605310,1779147035000,-713.67,0.00014999,2]
[422605320,1779147035000,-713.67,0.00014999,2]
[422605317,1779147035000,-713.67,0.00014999,2]
[422605304,1779147035000,-299.94222515,0.00014999,2]
[422605318,1779147035000,-713.67,0.00014999,2]
[422605316,1779147035000,-713.67,0.00014999,2]
[422605335,1779147035000,-2434.79182097,0.00015,2]
[422605337,1779147035000,-1159.94357071,0.00015,2]
[422605333,1779147035000,-3459.21954555,0.00015,2]
[422605334,1779147035000,-1284.18884217,0.00015,2]
[422605336,1779147035000,-795.81970827,0.00015,2]
[422605328,1779147035000,-116542.66731839,0.00015,2]
[422605325,1779147035000,-300.0,0.00014999,2]
[422605338,1779147035000,-1110.61079819,0.00015,2]
[422605326,1779147035000,-300.0,0.00014999,2]
[422605323,1779147035000,-300.0,0.00014999,2]
[422605330,1779147035000,-1254.41808677,0.00015,2]
[422605329,1779147035000,-338241.59767997,0.00015,2]
[422605324,1779147035000,-300.0,0.00014999,2]
[422605327,1779147035000,-91859.5873244,0.00015,2]
[422605332,1779147035000,-2886.20911339,0.00015,2]
[422605331,1779147035000,-512.90085166,0.00015,2]
[422605345,1779147038000,-162.25,0.00014384,2]
[422605349,1779147038000,-872782.10038478,0.00015,2]
[422605344,1779147038000,-324.51,0.00014384,2]
[422605346,1779147038000,-170.13109645,0.00014893,2]
[422605350,1779147038000,-11384.10002859,0.00015,2]
[422605348,1779147038000,-1258.57,0.00015,2]
[422605351,1779147038000,-3153.50367141,0.00015,2]
[422605347,1779147038000,-3118554.75414011,0.00015,2]
[422605354,1779147040000,-271.844794,0.000147,2]
[422605355,1779147040000,-1834.40405832,0.00015,2]
[422605364,1779147044000,-2608.1707815,0.00015,2]
[422605363,1779147044000,-190.54613769,0.000149,2]
[422605366,1779147047000,-1854.27,0.00015,2]
[422605369,1779147290000,1035.8841143,0.00030136,120]
[422605382,1779147792000,300.1,0.00030136,120]
[422605389,1779148140000,1000.0,0.00030135,120]
[422605471,1779148238000,-500.0,0.00014899,2]
[422605435,1779148238000,-150.0,0.00014798,2]
[422605437,1779148238000,-221.5444,0.000148,2]
[422605439,1779148238000,-2056.14369506,0.00014814,2]
[422605450,1779148238000,-300.0,0.00014836,2]
[422605452,1779148238000,-250.0,0.00014836,2]
[422605438,1779148238000,-170.13109645,0.000148,2]
[422605454,1779148238000,-197.25334599,0.00014836,2]
[422605456,1779148238000,-250.0,0.00014836,2]
[422605440,1779148238000,-1680.0,0.00014835,2]
[422605443,1779148238000,-300.0,0.00014836,2]
[422605445,1779148238000,-300.0,0.00014836,2]
[422605441,1779148238000,-300.0,0.00014836,2]
[422605448,1779148238000,-300.0,0.00014836,2]
[422605458,1779148238000,-2500.0,0.00014836,2]
[422605460,1779148238000,-2500.0,0.00014836,2]
[422605463,1779148238000,-2500.0,0.00014836,2]
[422605462,1779148238000,-2500.0,0.00014836,2]
[422605472,1779148238000,-500.0,0.00014899,2]
[422605477,1779148238000,-500.0,0.00014899,2]
[422605474,1779148238000,-500.0,0.00014899,2]
[422605473,1779148238000,-500.0,0.00014899,2]
[422605475,1779148238000,-500.0,0.00014899,2]
[422605476,1779148238000,-500.0,0.00014899,2]
[422605465,1779148238000,-1948.98388449,0.00014836,2]
[422605431,1779148238000,-295.02,0.000143,2]
[422605467,1779148238000,-419.39319205,0.00014865,2]
[422605470,1779148238000,-2000.0,0.00014893,2]
[422605478,1779148238000,-500.0,0.00014899,2]
[422605469,1779148238000,-1472.7157,0.00014893,2]
[422605415,1779148238000,-174.47,0.00013586,2]
[422605433,1779148238000,-166.66,0.00014758,2]
[422605491,1779148238000,-500.0,0.00014899,2]
[422605402,1779148238000,-300.0,0.00013487,2]
[422605405,1779148238000,-278.83771142,0.00013488,2]
[422605409,1779148238000,-150.0,0.00013488,2]
[422605408,1779148238000,-151.05845012,0.00013488,2]
[422605404,1779148238000,-250.0,0.00013487,2]
[422605403,1779148238000,-1200.0,0.00013487,2]
[422605407,1779148238000,-250.88125164,0.00013488,2]
[422605406,1779148238000,-150.0,0.00013488,2]
[422605410,1779148238000,-150.0,0.00013488,2]
[422605411,1779148238000,-150.0,0.00013488,2]
[422605412,1779148238000,-150.0,0.00013488,2]
[422605423,1779148238000,-166.66,0.0001379,2]
[422605432,1779148238000,-174.47,0.00014492,2]
[422605414,1779148238000,-172.96,0.00013575,2]
[422605418,1779148238000,-163.01,0.00013616,2]
[422605417,1779148238000,-200.0,0.00013611,2]
[422605421,1779148238000,-950.0,0.00013657,2]
[422605420,1779148238000,-241.96,0.00013646,2]
[422605419,1779148238000,-1401.15,0.00013639,2]
[422605424,1779148238000,-158.3,0.0001386,2]
[422605436,1779148238000,-2997.5508,0.00014799,2]
[422605426,1779148238000,-250.0,0.00014,2]
[422605429,1779148238000,-665.55727628,0.00014192,2]
[422605428,1779148238000,-200.0,0.00014149,2]
[422605427,1779148238000,-174.47,0.00014039,2]
[422605425,1779148238000,-207.51,0.00013949,2]
[422605430,1779148238000,-166.66,0.00014274,2]
[422605422,1779148238000,-150.0,0.00013735,2]
[422605480,1779148238000,-500.0,0.00014899,2]
[422605434,1779148238000,-420.0,0.00014783,2]
[422605482,1779148238000,-500.0,0.00014899,2]
[422605510,1779148238000,-500.0,0.00014899,2]
[422605513,1779148238000,-500.0,0.00014899,2]
[422605514,1779148238000,-500.0,0.00014899,2]
[422605526,1779148238000,-500.0,0.00014899,2]
[422605531,1779148238000,-500.0,0.00014899,2]
[422605530,1779148238000,-500.0,0.00014899,2]
[422605529,1779148238000,-500.0,0.00014899,2]
[422605522,1779148238000,-500.0,0.00014899,2]
[422605528,1779148238000,-500.0,0.00014899,2]
[422605524,1779148238000,-500.0,0.00014899,2]
[422605520,1779148238000,-500.0,0.00014899,2]
[422605523,1779148238000,-350.0,0.00014899,2]
[422605527,1779148238000,-500.0,0.00014899,2]
[422605512,1779148238000,-500.0,0.00014899,2]
[422605525,1779148238000,-500.0,0.00014899,2]
[422605521,1779148238000,-500.0,0.00014899,2]
[422605532,1779148238000,-300.0,0.00014899,2]
[422605535,1779148238000,-295361.741,0.000149,2]
[422605534,1779148238000,-500.0,0.00014899,2]
[422605536,1779148238000,-25597.8324,0.000149,2]
[422605543,1779148238000,-500.0,0.0001497,2]
[422605533,1779148238000,-500.0,0.00014899,2]
[422605539,1779148238000,-1855.15627456,0.000149,2]
[422605538,1779148238000,-5000.0,0.000149,2]
[422605540,1779148238000,-18316.97615187,0.00014904,2]
[422605544,1779148238000,-261312.38882109,0.00014971,2]
[422605541,1779148238000,-174.47,0.00014944,2]
[422605542,1779148238000,-500.0,0.0001497,2]
[422605519,1779148238000,-500.0,0.00014899,2]
[422605515,1779148238000,-500.0,0.00014899,2]
[422605537,1779148238000,-550.46013919,0.000149,2]
[422605511,1779148238000,-500.0,0.00014899,2]
[422605509,1779148238000,-500.0,0.00014899,2]
[422605479,1779148238000,-500.0,0.00014899,2]
[422605490,1779148238000,-500.0,0.00014899,2]
[422605485,1779148238000,-500.0,0.00014899,2]
[422605483,1779148238000,-500.0,0.00014899,2]
[422605484,1779148238000,-500.0,0.00014899,2]
[422605486,1779148238000,-500.0,0.00014899,2]
[422605488,1779148238000,-500.0,0.00014899,2]
[422605487,1779148238000,-500.0,0.00014899,2]
[422605489,1779148238000,-500.0,0.00014899,2]
[422605492,1779148238000,-500.0,0.00014899,2]
[422605493,1779148238000,-500.0,0.00014899,2]
[422605496,1779148238000,-500.0,0.00014899,2]
[422605497,1779148238000,-500.0,0.00014899,2]
[422605498,1779148238000,-500.0,0.00014899,2]
[422605481,1779148238000,-500.0,0.00014899,2]
[422605494,1779148238000,-313.59617657,0.00014899,2]
[422605516,1779148238000,-500.0,0.00014899,2]
[422605495,1779148238000,-500.0,0.00014899,2]
[422605517,1779148238000,-500.0,0.00014899,2]
[422605518,1779148238000,-500.0,0.00014899,2]
[422605507,1779148238000,-500.0,0.00014899,2]
[422605508,1779148238000,-500.0,0.00014899,2]
[422605505,1779148238000,-500.0,0.00014899,2]
[422605506,1779148238000,-500.0,0.00014899,2]
[422605504,1779148238000,-500.0,0.00014899,2]
[422605500,1779148238000,-500.0,0.00014899,2]
[422605499,1779148238000,-500.0,0.00014899,2]
[422605503,1779148238000,-500.0,0.00014899,2]
[422605502,1779148238000,-500.0,0.00014899,2]
[422605501,1779148238000,-166.25605058,0.00014899,2]
[422605555,1779148239000,-500.0,0.00014999,2]
[422605553,1779148239000,-500.0,0.00014999,2]
[422605549,1779148239000,-500.0,0.00014997,2]
[422605557,1779148239000,-500.0,0.00014999,2]
[422605548,1779148239000,-151.0,0.00014997,2]
[422605558,1779148239000,-205.95862544,0.00014999,2]
[422605546,1779148239000,-1756.91087221,0.00014993,2]
[422605545,1779148239000,-1877.67502266,0.00014993,2]
[422605552,1779148239000,-500.0,0.00014998,2]
[422605556,1779148239000,-500.0,0.00014999,2]
[422605550,1779148239000,-215.11887611,0.00014997,2]
[422605547,1779148239000,-1590.92179969,0.00014993,2]
[422605554,1779148239000,-500.0,0.00014999,2]
[422605551,1779148239000,-160.0,0.00014997,2]
[422605569,1779148239000,-23395.36945501,0.00015,2]
[422605565,1779148239000,-2560.5904227,0.00015,2]
[422605568,1779148239000,-2851.21217869,0.00015,2]
[422605567,1779148239000,-265.712551,0.00015,2]
[422605560,1779148239000,-500.0,0.00014999,2]
[422605562,1779148239000,-391.90506037,0.00014999,2]
[422605566,1779148239000,-1750.46774159,0.00015,2]
[422605564,1779148239000,-2149.54225841,0.00015,2]
[422605563,1779148239000,-3305904.045185,0.00015,2]
[422605561,1779148239000,-500.0,0.00014999,2]
[422605559,1779148239000,-549.66126605,0.00014999,2]
[422605573,1779148240000,-51479.68425023,0.00015,2]
[422605574,1779148242000,-290.0373289,0.00015,2]
[422605577,1779148243000,-9957.72573028,0.00015,2]
[422605575,1779148243000,-3795.2872258,0.00015,2]
[422605576,1779148243000,-9271.37882837,0.00015,2]
[422605586,1779148245000,-684.78,0.00015,2]
[422605587,1779148245000,-906.56,0.00015,2]
[422605588,1779148246000,-4651.15052465,0.00015,2]
[422605616,1779148267000,169.16,8.992e-05,2]
[422605617,1779148276000,-151.0,0.00014997,2]
[422605618,1779148276000,-362.31546475,0.00014999,5]
[422605619,1779148375000,166.01,0.00026478,120]
[422605620,1779148548000,160.0,0.00029,120]
[422605629,1779149221000,1106.82362789,0.00013699,15]
[422605630,1779149222000,336.17186285,0.00012993,21]
[422605631,1779149240000,500.0,0.00027995,120]
[422605632,1779149244000,2200.0,0.000105,3]
[422605633,1779149246000,4500.0,0.000106,3]
[422605636,1779149248000,6700.0,0.000107,3]
[422605637,1779149250000,9000.0,0.000108,3]
[422605638,1779149252000,11200.0,0.000109,3]
[422605640,1779149341000,1000.0,0.00030134,120]
[422605641,1779149349000,-591.4917593,0.00010539,2]
[422605642,1779149402000,268.93749028,0.00010593,21]
[422605643,1779149403000,403.40623544,0.0001062,21]
[422605644,1779149408000,151.88,5.239e-05,2]
[422605661,1779149432000,-12752.22286916,0.00010685,2]
[422605645,1779149432000,-7722.344179,0.0001022,2]
[422605646,1779149432000,-151.88,0.00010272,2]
[422605651,1779149432000,-643.32,0.00010593,2]
[422605650,1779149432000,-34595.14827307,0.00010593,2]
[422605648,1779149432000,-300.0,0.00010592,2]
[422605647,1779149432000,-1200.0,0.00010592,2]
[422605653,1779149432000,-299.69154158,0.00010625,2]
[422605649,1779149432000,-300.0,0.00010592,2]
[422605655,1779149432000,-15928.91676376,0.00010625,2]
[422605652,1779149432000,-250.0,0.0001062,2]
[422605658,1779149432000,-165.94101474,0.00010647,2]
[422605659,1779149432000,-250.0,0.00010659,2]
[422605660,1779149432000,-150.0,0.00010684,2]
[422605657,1779149432000,-154.3164136,0.00010647,2]
[422605654,1779149432000,-1541.69288269,0.00010625,2]
[422605656,1779149432000,-2139.80609929,0.00010625,2]
[422605664,1779149433000,-1923.85,0.00010685,2]
[422605662,1779149433000,-484.5,0.00010685,2]
[422605663,1779149433000,-380.0,0.00010685,2]
[422605679,1779149437000,-151.0,0.00010697,2]
[422605675,1779149437000,-1187.20296373,0.0001069,2]
[422605674,1779149437000,-1153.0,0.00010685,2]
[422605673,1779149437000,-41198.42713084,0.00010685,2]
[422605676,1779149437000,-1187.20296373,0.0001069,2]
[422605677,1779149437000,-151.0,0.00010697,2]
[422605680,1779149437000,-151.0,0.00010697,2]
[422605682,1779149437000,-151.0,0.00010697,2]
[422605681,1779149437000,-151.0,0.00010697,2]
[422605683,1779149437000,-500.0,0.00010699,2]
[422605678,1779149437000,-151.0,0.00010697,2]
[422605688,1779149437000,-391.90506037,0.00010699,2]
[422605689,1779149437000,-549.66126605,0.00010699,2]
[422605695,1779149437000,-500.0,0.00010699,2]
[422605694,1779149437000,-500.0,0.00010699,2]
[422605692,1779149437000,-500.0,0.00010699,2]
[422605690,1779149437000,-166.25605058,0.00010699,2]
[422605693,1779149437000,-500.0,0.00010699,2]
[422605684,1779149437000,-500.0,0.00010699,2]
[422605685,1779149437000,-205.95862544,0.00010699,2]
[422605686,1779149437000,-500.0,0.00010699,2]
[422605687,1779149437000,-500.0,0.00010699,2]
[422605691,1779149437000,-500.0,0.00010699,2]
[422605757,1779149438000,-500.0,0.00010699,2]
[422605746,1779149438000,-500.0,0.00010699,2]
[422605740,1779149438000,-500.0,0.00010699,2]
[422605744,1779149438000,-500.0,0.00010699,2]
[422605742,1779149438000,-500.0,0.00010699,2]
[422605736,1779149438000,-500.0,0.00010699,2]
[422605750,1779149438000,-500.0,0.00010699,2]
[422605748,1779149438000,-500.0,0.00010699,2]
[422605738,1779149438000,-500.0,0.00010699,2]
[422605754,1779149438000,-500.0,0.00010699,2]
[422605734,1779149438000,-500.0,0.00010699,2]
[422605728,1779149438000,-500.0,0.00010699,2]
[422605727,1779149438000,-500.0,0.00010699,2]
[422605752,1779149438000,-587.23655891,0.00010699,2]
[422605759,1779149438000,-500.0,0.00010699,2]
[422605776,1779149438000,-631.38105773,0.00010699,2]
[422605762,1779149438000,-500.0,0.00010699,2]
[422605765,1779149438000,-500.0,0.00010699,2]
[422605775,1779149438000,-631.38105773,0.00010699,2]
[422605766,1779149438000,-500.0,0.00010699,2]
[422605764,1779149438000,-500.0,0.00010699,2]
[422605767,1779149438000,-500.0,0.00010699,2]
[422605769,1779149438000,-500.0,0.00010699,2]
[422605772,1779149438000,-631.38105773,0.00010699,2]
[422605773,1779149438000,-631.38105773,0.00010699,2]
[422605770,1779149438000,-347.64709264,0.00010699,2]
[422605774,1779149438000,-631.38105773,0.00010699,2]
[422605768,1779149438000,-500.0,0.00010699,2]
[422605771,1779149438000,-217.8534139,0.00010699,2]
[422605729,1779149438000,-500.0,0.00010699,2]
[422605761,1779149438000,-500.0,0.00010699,2]
[422605726,1779149438000,-500.0,0.00010699,2]
[422605706,1779149438000,-500.0,0.00010699,2]
[422605724,1779149438000,-500.0,0.00010699,2]
[422605703,1779149438000,-500.0,0.00010699,2]
[422605696,1779149438000,-500.0,0.00010699,2]
[422605697,1779149438000,-500.0,0.00010699,2]
[422605701,1779149438000,-500.0,0.00010699,2]
[422605699,1779149438000,-500.0,0.00010699,2]
[422605702,1779149438000,-500.0,0.00010699,2]
[422605700,1779149438000,-500.0,0.00010699,2]
[422605777,1779149438000,-500.0,0.00010699,2]
[422605698,1779149438000,-276.35961765,0.00010699,2]
[422605704,1779149438000,-500.0,0.00010699,2]
[422605705,1779149438000,-500.0,0.00010699,2]
[422605717,1779149438000,-500.0,0.00010699,2]
[422605708,1779149438000,-500.0,0.00010699,2]
[422605707,1779149438000,-500.0,0.00010699,2]
[422605709,1779149438000,-500.0,0.00010699,2]
[422605715,1779149438000,-500.0,0.00010699,2]
[422605713,1779149438000,-500.0,0.00010699,2]
[422605720,1779149438000,-500.0,0.00010699,2]
[422605725,1779149438000,-500.0,0.00010699,2]
[422605723,1779149438000,-500.0,0.00010699,2]
[422605722,1779149438000,-500.0,0.00010699,2]
[422605731,1779149438000,-500.0,0.00010699,2]
[422605732,1779149438000,-500.0,0.00010699,2]
[422605730,1779149438000,-500.0,0.00010699,2]
[422605721,1779149438000,-500.0,0.00010699,2]
[422605718,1779149438000,-500.0,0.00010699,2]
[422605711,1779149438000,-500.0,0.00010699,2]
[422605716,1779149438000,-500.0,0.00010699,2]
[422605712,1779149438000,-500.0,0.00010699,2]
[422605714,1779149438000,-500.0,0.00010699,2]
[422605710,1779149438000,-500.0,0.00010699,2]
[422605719,1779149438000,-500.0,0.00010699,2]
[422605779,1779149438000,-255.13667886,0.00010699,2]
[422605840,1779149438000,-2139.80609928,0.00012763,2]
[422605778,1779149438000,-500.0,0.00010699,2]
[422605815,1779149438000,-1680.0,0.00011651,2]
[422605812,1779149438000,-500.0,0.00011521,2]
[422605818,1779149438000,-500.0,0.00011711,2]
[422605819,1779149438000,-21137.60724216,0.00011712,2]
[422605821,1779149438000,-550.46013914,0.00011763,2]
[422605822,1779149438000,-51507.90905918,0.00011794,2]
[422605820,1779149438000,-255.0,0.0001172,2]
[422605828,1779149438000,-51507.90905918,0.00012223,2]
[422605824,1779149438000,-366561.0694997,0.00011879,2]
[422605830,1779149438000,-500.0,0.00012343,2]
[422605823,1779149438000,-500.0,0.00011795,2]
[422605831,1779149438000,-419.39319205,0.00012385,2]
[422605825,1779149438000,-152.0,0.00012039,2]
[422605827,1779149438000,-21137.60724216,0.00012075,2]
[422605826,1779149438000,-500.0,0.00012069,2]
[422605829,1779149438000,-156.03,0.00012329,2]
[422605832,1779149438000,-1000.0,0.00012385,2]
[422605783,1779149438000,-520.93026654,0.00010699,2]
[422605847,1779149438000,-203.9,0.00012871,2]
[422605845,1779149438000,-203.9,0.00012871,2]
[422605846,1779149438000,-203.9,0.00012871,2]
[422605841,1779149438000,-21137.60724216,0.000128,2]
[422605842,1779149438000,-2351.0,0.00012816,2]
[422605814,1779149438000,-420.0,0.00011644,2]
[422605839,1779149438000,-15928.91676376,0.00012763,2]
[422605835,1779149438000,-500.0,0.00012617,2]
[422605838,1779149438000,-299.69154158,0.00012763,2]
[422605837,1779149438000,-1541.69288269,0.00012712,2]
[422605843,1779149438000,-433.0,0.00012853,2]
[422605834,1779149438000,-21137.60724216,0.00012437,2]
[422605833,1779149438000,-550.46013914,0.0001239,2]
[422605836,1779149438000,-51507.90905918,0.00012652,2]
[422605813,1779149438000,-239.54,0.00011606,2]
[422605844,1779149438000,-203.9,0.00012871,2]
[422605816,1779149438000,-250.0,0.00011652,2]
[422605811,1779149438000,-150.0,0.00011498,2]
[422605790,1779149438000,-500.0,0.00010699,2]
[422605781,1779149438000,-571.26271562,0.00010699,2]
[422605789,1779149438000,-500.0,0.00010699,2]
[422605782,1779149438000,-532.72459445,0.00010699,2]
[422605785,1779149438000,-500.0,0.00010699,2]
[422605786,1779149438000,-500.0,0.00010699,2]
[422605788,1779149438000,-500.0,0.00010699,2]
[422605784,1779149438000,-500.0,0.00010699,2]